[Event "NK ABC Kwalificatie 2"]
[Site "Zoetermeer, Netherlands"]
[Date "2025.01.05"]
[Round "6.11"]
[White "Heus, Daan"]
[Black "Van Batenburg, Mees"]
[Result "*"]
[TimeControl "55+10"]
[WhiteFideId "8814652"]
[BlackFideId "8762545"]
[WhiteElo "1891"]
[BlackElo "2221"]

1. d4 {[%clk 00:55:17]} e6 {[%clk 00:55:12]} 2. c4 {[%clk 00:55:12]} f5 {[%clk
00:55:11]} 3. Nf3 {[%clk 00:55:08]} Nf6 {[%clk 00:54:59]} 4. g3 {[%clk
00:55:08]} Be7 {[%clk 00:55:05]} 5. Bg2 {[%clk 00:55:14]} O-O {[%clk 00:55:11]}
6. O-O {[%clk 00:55:17]} d6 {[%clk 00:55:19]} 7. Nc3 {[%clk 00:55:05]} Ne4
{[%clk 00:55:25]} 8. Qc2 {[%clk 00:54:52]} Nxc3 {[%clk 00:55:31]} 9. Qxc3
{[%clk 00:54:15]} a5 {[%clk 00:55:30]} 10. Re1 {[%clk 00:50:31]} Nc6 {[%clk
00:54:46]} 11. e4 {[%clk 00:47:40]} e5 {[%clk 00:54:46]} *

[Event "NK ABC Kwalificatie 2"]
[Site "Zoetermeer, Netherlands"]
[Date "2025.01.05"]
[Round "6.12"]
[White "Pathak, Raghav"]
[Black "Etienne, Ghilon"]
[Result "0-1"]
[TimeControl "55+10"]
[WhiteFideId "8923849"]
[BlackFideId "8852118"]
[WhiteElo "1926"]
[BlackElo "1901"]

1. e4 {[%clk 00:54:02]} {[%emt 00:01:17]} e5 {[%emt 00:00:08]} 2. Nf3 {[%clk
00:54:05]} Nc6 {[%clk 00:55:21]} {[%emt 00:00:07]} 3. d4 {[%clk 00:54:12]}
{[%emt 00:00:03]} exd4 {[%clk 00:55:25]} {[%emt 00:00:07]} 4. Nxd4 {[%clk
00:54:19]} {[%emt 00:00:03]} Bc5 {[%clk 00:55:29]} {[%emt 00:00:06]} 5. Nb3
{[%clk 00:54:27]} {[%emt 00:00:02]} Bb6 {[%clk 00:55:30]} {[%emt 00:00:09]} 6.
Nc3 {[%clk 00:54:31]} {[%emt 00:00:06]} Nf6 {[%clk 00:55:06]} {[%emt 00:00:34]}
7. Qe2 {[%clk 00:54:34]} {[%emt 00:00:07]} d6 {[%clk 00:54:23]} {[%emt
00:00:53]} 8. Be3 {[%clk 00:54:30]} {[%emt 00:00:12]} Be6 {[%clk 00:53:56]}
{[%emt 00:00:38]} 9. O-O-O {[%clk 00:54:14]} {[%emt 00:00:26]} O-O {[%clk
00:53:17]} {[%emt 00:00:49]} 10. f3 {[%clk 00:54:18]} {[%emt 00:00:06]} Qe7
{[%clk 00:51:32]} {[%emt 00:01:53]} 11. g4 {[%clk 00:54:12]} {[%emt 00:00:17]}
Bxe3+ {[%clk 00:50:38]} {[%emt 00:01:06]} 12. Qxe3 {[%clk 00:54:08]} {[%emt
00:00:13]} a5 {[%clk 00:50:40]} {[%emt 00:00:08]} 13. Nd4 {[%clk 00:53:54]}
{[%emt 00:00:24]} Nxd4 {[%clk 00:50:20]} {[%emt 00:00:30]} 14. Qxd4 {[%clk
00:53:55]} {[%emt 00:00:09]} a4 {[%clk 00:48:26]} {[%emt 00:02:05]} 15. a3
{[%clk 00:53:46]} {[%emt 00:00:19]} Nd7 {[%clk 00:47:57]} {[%emt 00:00:38]} 16.
h4 {[%clk 00:53:41]} {[%emt 00:00:14]} Qf6 {[%clk 00:46:52]} {[%emt 00:01:16]}
17. Qe3 {[%clk 00:53:16]} {[%emt 00:00:35]} Ne5 {[%clk 00:45:03]} {[%emt
00:02:00]} 18. Be2 {[%clk 00:52:43]} {[%emt 00:00:42]} Ng6 {[%clk 00:44:24]}
{[%emt 00:00:49]} 19. Kb1 {[%clk 00:52:18]} {[%emt 00:00:36]} Qf4 {[%clk
00:43:19]} {[%emt 00:01:14]} 20. Qg1 {[%clk 00:51:52]} {[%emt 00:00:34]} Ne5
{[%clk 00:43:01]} {[%emt 00:00:31]} 21. Qg2 {[%clk 00:51:35]} {[%emt 00:00:26]}
Ra5 {[%clk 00:37:23]} {[%emt 00:05:48]} 22. Rhf1 {[%clk 00:48:17]} {[%emt
00:03:27]} Rb8 {[%clk 00:26:39]} {[%emt 00:10:56]} 23. Nb5 {[%clk 00:47:51]}
{[%emt 00:00:36]} Nc4 {[%clk 00:25:53]} {[%emt 00:00:56]} 24. Bxc4 {[%clk
00:46:45]} {[%emt 00:01:16]} Bxc4 {[%clk 00:25:58]} {[%emt 00:00:04]} 25. Nxc7
{[%clk 00:46:39]} {[%emt 00:00:17]} Bxf1 {[%clk 00:25:22]} {[%emt 00:00:46]} 26.
Qxf1 {[%emt 00:00:47]} Rc5 {[%clk 00:25:00]} 27. Nd5 {[%clk 00:46:17]} {[%emt
00:00:26]} Qh2 {[%clk 00:25:07]} {[%emt 00:00:03]} 28. Qd3 {[%clk 00:45:13]}
{[%emt 00:01:14]} Qxh4 {[%clk 00:24:15]} {[%emt 00:01:02]} 29. Nc3 {[%clk
00:44:58]} {[%emt 00:00:25]} Rc6 {[%clk 00:23:30]} {[%emt 00:00:55]} 30. Nxa4
{[%clk 00:44:05]} {[%emt 00:01:03]} h6 {[%clk 00:19:36]} {[%emt 00:04:04]} 31.
Nc3 {[%clk 00:44:03]} {[%emt 00:00:12]} Rbc8 {[%clk 00:17:31]} {[%emt
00:02:16]} 32. Rd2 {[%clk 00:43:04]} {[%emt 00:01:08]} Qe1+ {[%clk 00:15:14]}
{[%emt 00:02:27]} 33. Ka2 {[%clk 00:42:43]} {[%emt 00:00:32]} Qc1 {[%clk
00:14:50]} {[%emt 00:00:28]} 34. Ne2 {[%clk 00:41:03]} {[%emt 00:01:56]} Qf1
{[%clk 00:14:30]} {[%emt 00:00:29]} 35. Rd1 {[%clk 00:40:54]} {[%emt 00:00:19]}
Qf2 {[%clk 00:14:18]} {[%emt 00:00:22]} 36. Nd4 {[%clk 00:40:44]} {[%emt
00:00:21]} Rb6 {[%clk 00:12:18]} {[%emt 00:02:09]} 37. Rd2 {[%clk 00:40:35]}
{[%emt 00:00:19]} Qh4 {[%clk 00:09:43]} {[%emt 00:02:45]} 38. Qe3 {[%clk
00:40:17]} {[%emt 00:00:28]} Qf6 {[%clk 00:08:53]} {[%emt 00:01:00]} 39. Nb3
{[%clk 00:40:07]} {[%emt 00:00:21]} Rbc6 {[%clk 00:08:53]} {[%emt 00:00:09]} 40.
Qd3 {[%clk 00:40:05]} {[%emt 00:00:12]} Qe6 {[%clk 00:07:01]} {[%emt 00:02:02]}
41. Kb1 {[%clk 00:39:58]} {[%emt 00:00:17]} Qc4 {[%clk 00:07:01]} {[%emt
00:00:10]} 42. Qe3 {[%clk 00:39:43]} {[%emt 00:00:25]} Qf1+ {[%clk 00:06:43]}
{[%emt 00:00:28]} 43. Nc1 {[%clk 00:39:30]} {[%emt 00:00:24]} Qb5 {[%clk
00:06:29]} {[%emt 00:00:23]} 44. Nb3 {[%clk 00:39:26]} {[%emt 00:00:13]} Qf1+
{[%clk 00:05:24]} {[%emt 00:01:16]} 45. Nc1 {[%clk 00:39:31]} {[%emt 00:00:06]}
Qb5 {[%clk 00:05:04]} {[%emt 00:00:30]} 46. Qf2 {[%clk 00:39:01]} {[%emt
00:00:39]} Qc5 {[%clk 00:03:46]} {[%emt 00:01:29]} 47. Qe2 {[%clk 00:38:40]}
{[%emt 00:00:30]} Qc4 {[%clk 00:03:31]} {[%emt 00:00:26]} 48. Qf2 {[%clk
00:38:17]} {[%emt 00:00:32]} Qc5 {[%clk 00:03:26]} {[%emt 00:00:15]} 49. Qe2
{[%clk 00:38:16]} {[%emt 00:00:11]} Qc4 {[%clk 00:03:04]} {[%emt 00:00:32]} 50.
Qxc4 {[%clk 00:37:42]} {[%emt 00:00:45]} Rxc4 {[%clk 00:03:08]} {[%emt
00:00:06]} 51. c3 {[%clk 00:37:48]} {[%emt 00:00:03]} R4c6 {[%clk 00:03:12]}
{[%emt 00:00:06]} 52. Nd3 {[%clk 00:37:47]} {[%emt 00:00:11]} Kf8 {[%clk
00:03:13]} {[%emt 00:00:09]} 53. Nb4 {[%clk 00:37:51]} {[%emt 00:00:06]} Rb6
{[%clk 00:03:18]} {[%emt 00:00:05]} 54. Rd4 {[%clk 00:37:31]} {[%emt 00:00:30]}
f6 {[%clk 00:02:37]} {[%emt 00:00:51]} 55. Kc2 {[%clk 00:37:09]} {[%emt
00:00:32]} Kf7 {[%clk 00:02:42]} {[%emt 00:00:05]} 56. Kd2 {[%clk 00:37:02]}
{[%emt 00:00:18]} Rc5 {[%clk 00:02:29]} {[%emt 00:00:23]} 57. Nd3 {[%clk
00:36:40]} {[%emt 00:00:31]} Rg5 {[%clk 00:02:32]} {[%emt 00:00:08]} 58. Kc2
{[%clk 00:35:59]} {[%emt 00:00:50]} h5 {[%clk 00:02:34]} {[%emt 00:00:08]} 59.
Nf2 {[%clk 00:35:54]} {[%emt 00:00:15]} h4 {[%clk 00:02:15]} {[%emt 00:00:30]}
60. Nh3 {[%clk 00:35:49]} {[%emt 00:00:13]} Rgb5 {[%clk 00:02:15]} {[%emt
00:00:09]} 61. b4 {[%clk 00:35:48]} {[%emt 00:00:13]} Ra6 {[%clk 00:02:09]}
{[%emt 00:00:17]} 62. Kb3 {[%clk 00:35:50]} {[%emt 00:00:08]} g5 {[%clk
00:01:59]} {[%emt 00:00:20]} 63. a4 {[%clk 00:35:32]} {[%emt 00:00:28]} Re5
{[%clk 00:01:45]} {[%emt 00:00:23]} 64. b5 {[%clk 00:35:34]} {[%emt 00:00:08]}
Ra8 {[%clk 00:01:07]} {[%emt 00:00:49]} 65. Rxd6 {[%clk 00:35:28]} {[%emt
00:00:16]} Ke7 {[%clk 00:01:13]} {[%emt 00:00:04]} 66. Rd4 {[%clk 00:34:06]}
{[%emt 00:01:32]} b6 {[%clk 00:01:21]} {[%emt 00:00:03]} 67. Rc4 {[%clk
00:33:47]} {[%emt 00:00:29]} Rc5 {[%clk 00:01:21]} {[%emt 00:00:09]} 68. Rd4
{[%clk 00:32:24]} {[%emt 00:01:33]} Rd8 {[%clk 00:01:17]} {[%emt 00:00:14]} 69.
Rxd8 {[%clk 00:31:44]} {[%emt 00:00:50]} Kxd8 {[%clk 00:01:26]} {[%emt
00:00:01]} 70. c4 {[%clk 00:31:30]} {[%emt 00:00:25]} Kc7 {[%clk 00:01:26]}
{[%emt 00:00:09]} 71. Kc3 {[%clk 00:31:11]} {[%emt 00:00:23]} Kd6 {[%clk
00:01:35]} {[%emt 00:00:08]} 72. Kd4 {[%clk 00:30:59]} {[%emt 00:00:22]} Rc8
{[%clk 00:01:40]} {[%emt 00:00:04]} 73. Nf2 {[%clk 00:30:18]} {[%emt 00:00:51]}
Ra8 {[%clk 00:01:43]} {[%emt 00:00:07]} 74. e5+ {[%clk 00:29:52]} {[%emt
00:00:37]} fxe5+ {[%clk 00:01:49]} {[%emt 00:00:03]} 75. Kc3 {[%clk 00:29:49]}
{[%emt 00:00:13]} Ke7 {[%clk 00:01:00]} {[%emt 00:00:59]} 76. Kb4 {[%clk
00:29:39]} {[%emt 00:00:20]} Rf8 {[%clk 00:00:38]} {[%emt 00:00:32]} 77. Ne4
{[%clk 00:28:38]} {[%emt 00:01:11]} h3 {[%clk 00:00:35]} {[%emt 00:00:14]} 78.
c5 {[%clk 00:28:30]} {[%emt 00:00:18]} h2 {[%clk 00:00:39]} {[%emt 00:00:05]}
79. Ng3 {[%clk 00:28:14]} {[%emt 00:00:15]} Rf4+ {[%clk 00:00:37]} {[%emt
00:00:23]} 80. Kb3 {[%clk 00:28:14]} {[%emt 00:00:09]} Rxf3+ {[%clk 00:00:45]}
{[%emt 00:00:03]} 81. Kc4 {[%clk 00:28:08]} {[%emt 00:00:15]} Rxg3 {[%clk
00:00:51]} {[%emt 00:00:05]} 82. Kd4 {[%clk 00:55:10]} {[%emt 00:00:13]} 0-1

[Event "NK ABC Kwalificatie 2"]
[Site "Zoetermeer, Netherlands"]
[Date "2025.01.05"]
[Round "6.13"]
[White "Ten Dam, Bram"]
[Black "Thijssen, Freek"]
[Result "1/2-1/2"]
[TimeControl "55+10"]
[WhiteFideId "8975340"]
[BlackFideId "8806479"]
[WhiteElo "2013"]
[BlackElo "1889"]

1. e4 {[%clk 00:55:17]} {[%emt 00:00:02]} e5 {[%clk 00:55:13]} {[%emt
00:00:08]} 2. Nf3 {[%clk 00:55:14]} {[%emt 00:00:13]} Nc6 {[%clk 00:55:19]}
{[%emt 00:00:04]} 3. Bc4 {[%clk 00:55:17]} {[%emt 00:00:06]} Bc5 {[%clk
00:54:56]} {[%emt 00:00:33]} 4. c3 {[%clk 00:55:17]} {[%emt 00:00:11]} Nf6
{[%clk 00:55:01]} {[%emt 00:00:04]} 5. d3 {[%clk 00:55:23]} {[%emt 00:00:05]}
d6 {[%clk 00:54:05]} {[%emt 00:01:06]} 6. O-O {[%clk 00:55:11]} {[%emt
00:00:22]} h6 {[%clk 00:53:35]} {[%emt 00:00:40]} 7. a4 {[%clk 00:54:31]}
{[%emt 00:00:51]} Bb6 {[%clk 00:50:45]} {[%emt 00:03:00]} 8. Re1 {[%clk
00:53:11]} {[%emt 00:01:30]} O-O {[%clk 00:49:33]} {[%emt 00:01:21]} 9. h3
{[%clk 00:53:02]} {[%emt 00:00:19]} Re8 {[%clk 00:48:49]} {[%emt 00:00:54]} 10.
Nbd2 {[%clk 00:49:13]} {[%emt 00:04:00]} Be6 {[%clk 00:44:54]} {[%emt
00:04:04]} 11. Bxe6 {[%clk 00:48:29]} {[%emt 00:00:55]} Rxe6 {[%clk 00:40:12]}
{[%emt 00:04:52]} 12. b4 {[%clk 00:39:54]} {[%emt 00:08:45]} a6 {[%clk
00:36:49]} {[%emt 00:03:33]} 13. Bb2 {[%clk 00:31:02]} {[%emt 00:09:02]} d5
{[%clk 00:31:37]} {[%emt 00:05:21]} 14. Qb3 {[%clk 00:27:19]} {[%emt 00:03:53]}
dxe4 {[%clk 00:28:32]} {[%emt 00:03:16]} 15. dxe4 {[%clk 00:25:33]} {[%emt
00:01:55]} Nh5 {[%clk 00:22:54]} {[%emt 00:05:48]} 16. Nc4 {[%clk 00:23:41]}
{[%emt 00:02:01]} Nf4 {[%clk 00:21:50]} {[%emt 00:01:16]} 17. Nxb6 {[%clk
00:22:39]} {[%emt 00:01:12]} cxb6 {[%clk 00:21:50]} {[%emt 00:00:09]} 18. Rad1
{[%clk 00:18:38]} {[%emt 00:04:11]} Qe7 {[%clk 00:19:17]} {[%emt 00:02:42]} 19.
Kh2 {[%clk 00:18:01]} {[%emt 00:00:47]} Rd6 {[%clk 00:12:44]} {[%emt 00:06:44]}
20. g3 {[%clk 00:17:07]} {[%emt 00:01:04]} Qd8 {[%emt 00:00:44]} 1/2-1/2

[Event "NK ABC Kwalificatie 2"]
[Site "Zoetermeer, Netherlands"]
[Date "2025.01.05"]
[Round "6.14"]
[White "Koppenens, Oscar"]
[Black "Wacht, Florian"]
[Result "1-0"]
[TimeControl "55+10"]
[WhiteFideId "8863833"]
[BlackFideId "8823034"]
[WhiteElo "1948"]
[BlackElo "1818"]

1. e4 {[%clk 00:55:18]} {[%emt 00:00:01]} e5 {[%clk 00:55:10]} {[%emt
00:00:11]} 2. Nf3 {[%clk 00:55:23]} {[%emt 00:00:05]} Nc6 {[%clk 00:55:17]}
{[%emt 00:00:04]} 3. Bc4 {[%clk 00:55:27]} {[%emt 00:00:05]} Nf6 {[%clk
00:55:20]} {[%emt 00:00:07]} 4. d4 {[%clk 00:55:34]} {[%emt 00:00:03]} exd4
{[%clk 00:55:23]} {[%emt 00:00:08]} 5. e5 {[%clk 00:55:40]} {[%emt 00:00:03]}
d5 {[%clk 00:55:26]} {[%emt 00:00:07]} 6. Bb5 {[%clk 00:55:46]} {[%emt
00:00:04]} Ne4 {[%clk 00:55:28]} {[%emt 00:00:08]} 7. Nxd4 {[%clk 00:55:50]}
{[%emt 00:00:06]} Bd7 {[%clk 00:55:31]} {[%emt 00:00:07]} 8. Bxc6 {[%clk
00:55:56]} {[%emt 00:00:05]} bxc6 {[%clk 00:55:33]} {[%emt 00:00:07]} 9. O-O
{[%clk 00:56:04]} {[%emt 00:00:02]} Bc5 {[%clk 00:55:35]} {[%emt 00:00:09]} 10.
f3 {[%clk 00:56:09]} {[%emt 00:00:04]} Ng5 {[%clk 00:55:39]} {[%emt 00:00:07]}
11. f4 {[%clk 00:56:15]} {[%emt 00:00:04]} Ne4 {[%clk 00:55:45]} {[%emt
00:00:04]} 12. Be3 {[%clk 00:56:19]} {[%emt 00:00:06]} Bb6 {[%clk 00:55:49]}
{[%emt 00:00:06]} 13. Nd2 {[%clk 00:56:16]} {[%emt 00:00:12]} Nxd2 {[%clk
00:55:48]} {[%emt 00:00:11]} 14. Qxd2 {[%clk 00:56:22]} {[%emt 00:00:05]} c5
{[%clk 00:54:52]} {[%emt 00:01:06]} 15. Nf3 {[%clk 00:56:24]} {[%emt 00:00:08]}
Bc6 {[%clk 00:52:42]} {[%emt 00:02:19]} 16. f5 {[%clk 00:55:22]} {[%emt
00:01:12]} O-O {[%clk 00:51:25]} {[%emt 00:01:28]} 17. f6 {[%clk 00:53:40]}
{[%emt 00:01:50]} g6 {[%clk 00:51:17]} {[%emt 00:00:19]} 18. Bf2 {[%clk
00:53:26]} {[%emt 00:00:23]} d4 {[%clk 00:49:56]} {[%emt 00:01:33]} 19. Qh6
{[%clk 00:53:18]} {[%emt 00:00:17]} Bxf3 {[%clk 00:49:37]} {[%emt 00:00:30]} 20.
Qg7# {[%clk 00:53:09]} {[%emt 00:00:18]} 1-0

[Event "NK ABC Kwalificatie 2"]
[Site "Zoetermeer, Netherlands"]
[Date "2025.01.05"]
[Round "6.15"]
[White "Mittal, Aashray"]
[Black "Cubuk, Armin"]
[Result "1-0"]
[TimeControl "55+10"]
[WhiteFideId "8924784"]
[BlackFideId "9004138"]
[WhiteElo "1889"]
[BlackElo "1777"]

1. e4 {[%clk 00:55:19]} {[%emt 00:11:40]} c6 {[%clk 00:55:13]} {[%emt
00:00:08]} 2. d4 {[%clk 00:55:26]} {[%emt 00:00:03]} d5 {[%clk 00:55:21]}
{[%emt 00:00:02]} 3. exd5 {[%clk 00:55:30]} {[%emt 00:00:06]} cxd5 {[%clk
00:55:25]} {[%emt 00:00:05]} 4. c4 {[%clk 00:55:36]} {[%emt 00:00:05]} Nf6
{[%clk 00:55:32]} {[%emt 00:00:03]} 5. Nc3 {[%clk 00:55:42]} {[%emt 00:00:04]}
Nc6 {[%clk 00:55:38]} {[%emt 00:00:04]} 6. Nf3 {[%clk 00:55:48]} {[%emt
00:00:04]} Bg4 {[%clk 00:55:42]} {[%emt 00:00:05]} 7. cxd5 {[%clk 00:55:32]}
{[%emt 00:00:27]} Nxd5 {[%clk 00:55:17]} {[%emt 00:00:34]} 8. Bc4 {[%clk
00:55:38]} {[%emt 00:00:04]} Nxc3 {[%clk 00:54:32]} {[%emt 00:00:56]} 9. bxc3
{[%clk 00:55:43]} {[%emt 00:00:06]} e6 {[%clk 00:54:29]} {[%emt 00:00:12]} 10.
O-O {[%clk 00:55:48]} {[%emt 00:00:04]} Bd6 {[%clk 00:54:10]} {[%emt 00:00:29]}
11. Rb1 {[%clk 00:55:18]} {[%emt 00:00:40]} Rb8 {[%clk 00:53:18]} {[%emt
00:01:04]} 12. Re1 {[%clk 00:51:57]} {[%emt 00:03:30]} O-O {[%clk 00:53:16]}
{[%emt 00:00:11]} 13. Be2 {[%clk 00:49:10]} {[%emt 00:02:57]} Qa5 {[%clk
00:51:34]} {[%emt 00:01:52]} 14. Qc2 {[%clk 00:48:02]} {[%emt 00:01:19]} Bf5
{[%clk 00:51:14]} {[%emt 00:00:30]} 15. Bd3 {[%clk 00:47:58]} {[%emt 00:00:14]}
Bxd3 {[%clk 00:51:09]} {[%emt 00:00:16]} 16. Qxd3 {[%clk 00:48:06]} {[%emt
00:00:01]} h6 {[%clk 00:48:58]} {[%emt 00:02:21]} 17. Rb5 {[%clk 00:34:21]}
{[%emt 00:13:56]} Qa6 {[%clk 00:43:22]} {[%emt 00:05:46]} 18. c4 {[%clk
00:30:52]} {[%emt 00:03:39]} Nb4 {[%clk 00:40:23]} {[%emt 00:03:08]} 19. Qe4
{[%clk 00:29:52]} {[%emt 00:01:06]} Nd5 {[%clk 00:37:15]} {[%emt 00:03:21]} 20.
Qh4 {[%clk 00:25:54]} {[%emt 00:04:08]} Be7 {[%clk 00:35:25]} {[%emt 00:02:00]}
21. Qh3 {[%clk 00:25:16]} {[%emt 00:00:49]} Kh7 {[%clk 00:29:41]} {[%emt
00:05:54]} 22. Ne5 {[%clk 00:17:57]} {[%emt 00:07:29]} Rbd8 {[%clk 00:28:41]}
{[%emt 00:01:10]} 23. Qd3+ {[%clk 00:17:36]} {[%emt 00:00:32]} Kg8 {[%clk
00:28:04]} {[%emt 00:00:47]} 24. cxd5 {[%clk 00:17:40]} {[%emt 00:00:05]} Rxd5
{[%clk 00:28:05]} {[%emt 00:00:09]} 25. Rxd5 {[%clk 00:17:41]} {[%emt
00:00:10]} Qxd3 {[%clk 00:28:06]} {[%emt 00:00:09]} 26. Nxd3 {[%clk 00:17:47]}
{[%emt 00:00:04]} 1-0

[Event "NK ABC Kwalificatie 2"]
[Site "Zoetermeer, Netherlands"]
[Date "2025.01.05"]
[Round "6.17"]
[White "Baarspul, Bram"]
[Black "Rooijakkers, Liam"]
[Result "1-0"]
[TimeControl "55+10"]
[WhiteFideId "9026171"]
[BlackFideId "8755868"]
[WhiteElo "1986"]
[BlackElo "1796"]

1. e4 {[%clk 00:55:17]} {[%emt 00:00:02]} d6 {[%clk 00:55:12]} {[%emt
00:00:08]} 2. d4 {[%clk 00:55:20]} {[%emt 00:00:07]} Nf6 {[%clk 00:55:18]}
{[%emt 00:00:04]} 3. Nc3 {[%clk 00:55:26]} {[%emt 00:00:04]} Nbd7 {[%clk
00:55:26]} {[%emt 00:00:03]} 4. Nf3 {[%clk 00:55:29]} {[%emt 00:00:07]} e5
{[%clk 00:55:33]} {[%emt 00:00:03]} 5. Bc4 {[%clk 00:55:34]} {[%emt 00:00:05]}
h6 {[%clk 00:55:39]} {[%emt 00:00:03]} 6. O-O {[%clk 00:55:40]} {[%emt
00:00:04]} c6 {[%clk 00:55:44]} {[%emt 00:00:05]} 7. Be3 {[%clk 00:55:43]}
{[%emt 00:00:08]} Qc7 {[%clk 00:55:39]} {[%emt 00:00:15]} 8. dxe5 {[%clk
00:55:43]} {[%emt 00:00:09]} dxe5 {[%clk 00:55:44]} {[%emt 00:00:05]} 9. Qd2
{[%clk 00:55:35]} {[%emt 00:00:18]} Be7 {[%clk 00:55:42]} {[%emt 00:00:12]} 10.
Nh4 {[%clk 00:55:10]} {[%emt 00:00:35]} b5 {[%clk 00:53:57]} {[%emt 00:01:56]}
11. Bb3 {[%clk 00:54:24]} {[%emt 00:00:56]} b4 {[%clk 00:53:37]} {[%emt
00:00:29]} 12. Ne2 {[%clk 00:53:01]} {[%emt 00:01:32]} Nxe4 {[%clk 00:53:22]}
{[%emt 00:00:27]} 13. Qd3 {[%clk 00:53:05]} {[%emt 00:00:06]} Bxh4 {[%clk
00:50:43]} {[%emt 00:02:49]} 14. Qxe4 {[%clk 00:53:04]} {[%emt 00:00:11]} Be7
{[%clk 00:50:23]} {[%emt 00:00:30]} 15. Qg4 {[%clk 00:48:08]} {[%emt 00:05:04]}
Bf8 {[%clk 00:47:54]} {[%emt 00:02:40]} 16. Qg3 {[%clk 00:41:47]} {[%emt
00:06:31]} a5 {[%clk 00:43:20]} {[%emt 00:04:44]} 17. f4 {[%clk 00:39:24]}
{[%emt 00:02:32]} e4 {[%clk 00:41:02]} {[%emt 00:02:29]} 18. a3 {[%clk
00:37:03]} {[%emt 00:02:32]} a4 {[%clk 00:40:34]} {[%emt 00:00:39]} 19. axb4
{[%clk 00:36:39]} {[%emt 00:00:33]} Ba6 {[%clk 00:35:39]} {[%emt 00:05:04]} 20.
Rxa4 {[%clk 00:35:52]} {[%emt 00:00:58]} Nb6 {[%clk 00:35:36]} {[%emt
00:00:13]} 21. Bxb6 {[%clk 00:34:15]} {[%emt 00:01:46]} Qxb6+ {[%clk 00:35:43]}
{[%emt 00:00:03]} 22. Qf2 {[%clk 00:31:47]} {[%emt 00:02:38]} e3 {[%clk
00:33:21]} {[%emt 00:02:33]} 23. Qg3 {[%clk 00:30:05]} {[%emt 00:01:51]} Rd8
{[%clk 00:32:56]} {[%emt 00:00:36]} 24. Rxa6 {[%clk 00:23:34]} {[%emt
00:06:41]} Qxa6 {[%clk 00:32:42]} {[%emt 00:00:23]} 25. Qxe3+ {[%clk 00:23:40]}
{[%emt 00:00:04]} Be7 {[%clk 00:32:43]} {[%emt 00:00:09]} 26. Nd4 {[%clk
00:20:58]} {[%emt 00:02:51]} Qb6 {[%clk 00:30:47]} {[%emt 00:02:08]} 27. c3
{[%clk 00:20:21]} {[%emt 00:00:46]} Rd7 {[%clk 00:28:56]} {[%emt 00:02:01]} 28.
Ba4 {[%clk 00:15:09]} {[%emt 00:05:22]} Rc7 {[%clk 00:26:41]} {[%emt 00:02:26]}
29. Re1 {[%clk 00:14:16]} {[%emt 00:01:03]} O-O {[%clk 00:24:49]} {[%emt
00:02:01]} 30. Nxc6 {[%clk 00:13:48]} {[%emt 00:00:38]} Qxe3+ {[%clk 00:23:25]}
{[%emt 00:01:35]} 31. Rxe3 {[%clk 00:13:57]} {[%emt 00:00:01]} Bd6 {[%clk
00:23:15]} {[%emt 00:00:20]} 32. g3 {[%clk 00:13:28]} {[%emt 00:00:40]} Ra8
{[%clk 00:22:43]} {[%emt 00:00:41]} 33. b3 {[%clk 00:12:24]} {[%emt 00:01:14]}
Kh7 {[%clk 00:13:37]} {[%emt 00:09:15]} 34. Nd4 {[%clk 00:11:23]} {[%emt
00:01:11]} Re7 {[%clk 00:12:12]} {[%emt 00:01:35]} 35. Rd3 {[%clk 00:10:49]}
{[%emt 00:00:44]} Bc7 {[%clk 00:09:55]} {[%emt 00:02:27]} 36. Kf2 {[%clk
00:09:28]} {[%emt 00:01:30]} Bb6 {[%clk 00:09:43]} {[%emt 00:00:23]} 37. Kf3
{[%clk 00:08:10]} {[%emt 00:01:28]} Rc8 {[%clk 00:08:07]} {[%emt 00:01:47]} 38.
c4 {[%clk 00:07:16]} {[%emt 00:01:04]} Rec7 {[%clk 00:06:03]} {[%emt 00:02:15]}
39. c5 {[%clk 00:06:46]} {[%emt 00:00:38]} Ba7 {[%clk 00:06:11]} {[%emt
00:00:03]} 40. Nb5 {[%clk 00:06:30]} {[%emt 00:00:26]} Re7 {[%clk 00:06:03]}
{[%emt 00:00:18]} 41. Nxa7 {[%clk 00:06:01]} {[%emt 00:00:39]} Rxa7 {[%clk
00:06:12]} {[%emt 00:00:02]} 42. c6 {[%clk 00:05:50]} {[%emt 00:00:20]} Kg6
{[%clk 00:04:33]} {[%emt 00:01:49]} 43. b5 {[%clk 00:05:40]} {[%emt 00:00:20]}
Re7 {[%clk 00:02:01]} {[%emt 00:02:42]} 44. b6 {[%clk 00:05:31]} {[%emt
00:00:18]} Rb8 {[%clk 00:02:10]} {[%emt 00:00:02]} 45. c7 {[%clk 00:05:23]}
{[%emt 00:00:17]} Rf8 {[%clk 00:01:25]} {[%emt 00:00:55]} 46. Rd8 {[%clk
00:05:17]} {[%emt 00:00:16]} 1-0

[Event "NK ABC Kwalificatie 2"]
[Site "Zoetermeer, Netherlands"]
[Date "????.??.??"]
[Round "7.1"]
[White "Kumar, Prajit Sai"]
[Black "Snijders, Take"]
[Result "1/2-1/2"]
[TimeControl "55+10"]
[WhiteFideId "8767979"]
[BlackFideId "8935927"]
[WhiteElo "2210"]
[BlackElo "2119"]

1. e4 {[%clk 00:55:18]} c6 {[%clk 00:55:18]} {[%emt 00:00:03]} 2. Nf3 {[%clk
00:55:25]} {[%emt 00:00:04]} d5 {[%clk 00:55:23]} {[%emt 00:00:05]} 3. Nc3
{[%clk 00:55:32]} {[%emt 00:00:03]} dxe4 {[%clk 00:55:29]} {[%emt 00:00:03]} 4.
Nxe4 {[%clk 00:55:37]} {[%emt 00:00:05]} Nf6 {[%clk 00:55:35]} {[%emt
00:00:04]} 5. Qe2 {[%clk 00:55:43]} {[%emt 00:00:04]} Nxe4 {[%clk 00:55:42]}
{[%emt 00:00:04]} 6. Qxe4 {[%clk 00:55:48]} {[%emt 00:00:04]} Be6 {[%clk
00:55:47]} {[%emt 00:00:05]} 7. b3 {[%clk 00:54:18]} {[%emt 00:01:40]} Nd7
{[%clk 00:55:12]} {[%emt 00:00:45]} 8. Bb2 {[%clk 00:52:33]} {[%emt 00:01:55]}
Nf6 {[%clk 00:55:18]} {[%emt 00:00:04]} 9. Qf4 {[%clk 00:46:24]} {[%emt
00:06:18]} Nd5 {[%clk 00:49:45]} {[%emt 00:05:44]} 10. Qe4 {[%clk 00:45:36]}
{[%emt 00:00:57]} Nf6 {[%clk 00:47:29]} {[%emt 00:02:28]} 11. Qh4 {[%clk
00:42:32]} {[%emt 00:03:14]} Bf5 {[%clk 00:46:25]} {[%emt 00:01:13]} 12. d3
{[%clk 00:42:34]} {[%emt 00:00:09]} e6 {[%clk 00:45:02]} {[%emt 00:01:32]} 13.
Be2 {[%clk 00:39:27]} {[%emt 00:03:16]} Qa5+ {[%clk 00:40:08]} {[%emt
00:05:05]} 14. Kf1 {[%clk 00:38:55]} {[%emt 00:00:42]} Be7 {[%clk 00:34:12]}
{[%emt 00:06:06]} 15. Qf4 {[%clk 00:35:51]} {[%emt 00:03:14]} Nd5 {[%clk
00:28:28]} {[%emt 00:05:54]} 16. Qd2 {[%clk 00:34:22]} {[%emt 00:01:38]} Bb4
{[%clk 00:26:55]} {[%emt 00:01:43]} 17. Qc1 {[%clk 00:34:14]} {[%emt 00:00:18]}
Bc3 {[%clk 00:26:27]} {[%emt 00:00:39]} 18. a3 {[%clk 00:32:45]} {[%emt
00:01:39]} 1/2-1/2